fUST/lending_fUST_20251201
["ID","MTS","AMOUNT","RATE_DAILY","PERIOD"]
[395235593,1764559842688,-500.0,0.00011103,2]
[395235594,1764559842698,-392.34095683,0.00011103,2]
[395235598,1764559842727,-767.77904317,0.00011103,2]
[395235600,1764559842736,-500.0,0.00011103,2]
[395235602,1764559842745,-500.0,0.00011103,2]
[395235604,1764559842754,-777.90527205,0.00011103,2]
[395235667,1764559843364,-500.0,0.000111,2]
[395235669,1764559843373,-983.04472795,0.00011103,2]
[395235671,1764559843382,-622.05,0.00011103,2]
[395235673,1764559843391,-500.0,0.00011103,2]
[395235675,1764559843400,-500.0,0.00011103,2]
[395235677,1764559843409,-500.0,0.00011103,2]
[395235679,1764559843418,-500.0,0.00011103,2]
[395235680,1764559843427,-631.47,0.00011103,2]
[395235682,1764559843436,-340.73926014,0.00011103,2]
[395235684,1764559843445,-500.0,0.00011103,2]
[395235686,1764559843454,-1275.35,0.00011103,2]
[395235688,1764559843464,-794.23,0.00011103,2]
[395235690,1764559843472,-500.0,0.00011103,2]
[395235692,1764559843482,-3209.57,0.00011103,2]
[395235694,1764559843491,-734.17,0.00011103,2]
[395235696,1764559843500,-527.03,0.00011103,2]
[395235698,1764559843509,-500.0,0.00011103,2]
[395235700,1764559843519,-500.0,0.00011103,2]
[395235702,1764559843528,-500.0,0.00011103,2]
[395235704,1764559843537,-500.0,0.00011103,2]
[395235706,1764559843546,-1371.72,0.00011103,2]
[395235708,1764559843554,-500.0,0.00011103,2]
[395235710,1764559843563,-200.61922037,0.00011103,2]
[395235712,1764559843572,-569.76,0.00011103,2]
[395235714,1764559843581,-1248.55,0.00011103,2]
[395235716,1764559843591,-500.0,0.00011103,2]
[395235718,1764559843600,-697.78,0.00011103,2]
[395235720,1764559843608,-500.0,0.00011103,2]
[395235722,1764559843617,-735.99,0.00011103,2]
[395235724,1764559843627,-2644.22,0.00011103,2]
[395235726,1764559843636,-894.69,0.00011103,2]
[395235728,1764559843645,-1505.55,0.00011103,2]
[395235730,1764559843654,-56.22149209,0.00011103,2]
[395237121,1764561031788,-715.2052468,9.013e-05,2]
[395237122,1764561031798,-407.82117942,9.104e-05,2]
[395237123,1764561031809,-82.38406738,9.104e-05,2]
[395237124,1764561031819,-225.0,9.104e-05,2]
[395237125,1764561031828,-174.4904964,9.745e-05,2]
[395237126,1764561031838,-43.6670443,0.00010385,2]
[395237171,1764561032372,-256.3329557,0.00010385,2]
[395237172,1764561032381,-300.0,0.00010385,2]
[395237173,1764561032391,-300.0,0.00010385,2]
[395237174,1764561032400,-1200.0,0.00010385,2]
[395237175,1764561032410,-300.0,0.00010385,2]
[395237176,1764561032419,-371.31718921,0.00010386,2]
[395237177,1764561032429,-668.37094058,0.00010386,2]
[395237178,1764561032438,-1188.21500548,0.00010386,2]
[395237179,1764561032447,-1856.58594605,0.00010386,2]
[395237180,1764561032456,-300.0,0.00010592,2]
[395237181,1764561032466,-300.0,0.00010592,2]
[395237182,1764561032475,-300.0,0.00010592,2]
[395237183,1764561032484,-300.0,0.00010592,2]
[395237184,1764561032493,-300.0,0.00010592,2]
[395237185,1764561032502,-300.0,0.00010592,2]
[395237186,1764561032511,-300.0,0.00010592,2]
[395237187,1764561032520,-300.0,0.00010592,2]
[395237188,1764561032529,-300.0,0.00010592,2]
[395237189,1764561032539,-300.0,0.00010592,2]
[395237190,1764561032548,-300.0,0.00010592,2]
[395237191,1764561032557,-300.0,0.00010592,2]
[395237192,1764561032567,-300.0,0.00010592,2]
[395237193,1764561032575,-300.0,0.00010592,2]
[395237194,1764561032586,-300.0,0.00010592,2]
[395237195,1764561032596,-600.0,0.00010803,2]
[395237196,1764561032605,-50000.0,0.00010932,2]
[395237197,1764561032614,-500.0,0.00010958,2]
[395237198,1764561032623,-751.12,0.00010958,2]
[395237199,1764561032632,-1745.05,0.00010958,2]
[395237200,1764561032641,-199.45186587,0.00010958,2]
[395237201,1764561032650,-93.79092996,0.00010959,2]
[395237202,1764561032663,-406.20907004,0.00010959,2]
[395237203,1764561032676,-199.20317323,0.00010959,2]
[395237204,1764561032685,-500.0,0.00010959,2]
[395237205,1764561032694,-500.0,0.00010959,2]
[395237206,1764561032704,-500.0,0.00010959,2]
[395237207,1764561032714,-302.86478964,0.00010996,2]
[395237208,1764561032725,-302.86478964,0.00011,2]
[395237209,1764561032734,-302.86478964,0.00011003,2]
[395237210,1764561032744,-302.86478964,0.00011007,2]
[395237211,1764561032754,-302.86478964,0.0001101,2]
[395237212,1764561032763,-353.71323156,0.00011058,2]
[395237213,1764561032772,-554.37,0.00011063,2]
[395237214,1764561032782,-992.25,0.00011063,2]
[395237215,1764561032791,-732.69,0.00011063,2]
[395237216,1764561032800,-512.95,0.00011063,2]
[395237217,1764561032809,-500.0,0.00011063,2]
[395237218,1764561032818,-2991.41,0.00011063,2]
[395237219,1764561032827,-6435.11,0.00011063,2]
[395237220,1764561032837,-500.0,0.00011063,2]
[395237221,1764561032846,-5419.52,0.00011063,2]
[395237222,1764561032856,-719.61,0.00011063,2]
[395237223,1764561032864,-1238.71,0.00011063,2]
[395237224,1764561032873,-500.0,0.00011063,2]
[395237225,1764561032883,-500.0,0.00011063,2]
[395237226,1764561032893,-500.0,0.00011063,2]
[395237227,1764561032901,-2609.64,0.00011063,2]
[395237228,1764561032911,-684.96,0.00011063,2]
[395237229,1764561032920,-500.0,0.00011063,2]
[395237230,1764561032929,-918.3,0.00011063,2]
[395237231,1764561032939,-533.02,0.00011063,2]
[395237232,1764561032947,-2537.85,0.00011063,2]
[395237233,1764561032956,-1455.91,0.00011063,2]
[395237234,1764561032965,-500.0,0.00011063,2]
[395237235,1764561032974,-500.0,0.00011063,2]
[395237236,1764561032983,-168.97845307,0.00011093,2]
[395237237,1764561032993,-151.0,0.00011093,2]
[395237238,1764561033002,-231.28369723,0.00011093,2]
[395237239,1764561033011,-500.0,0.00011096,2]
[395237240,1764561033020,-500.0,0.00011096,2]
[395237241,1764561033030,-709.66,0.00011096,2]
[395237242,1764561033039,-500.0,0.00011096,2]
[395237243,1764561033048,-793.71,0.00011096,2]
[395237244,1764561033057,-2852.08,0.00011096,2]
[395237245,1764561033067,-500.0,0.00011096,2]
[395237246,1764561033076,-1063.84,0.00011096,2]
[395237247,1764561033086,-732.86,0.00011096,2]
[395237248,1764561033096,-609.85,0.00011096,2]
[395237249,1764561033106,-136.28391033,0.00011096,2]
[395237273,1764561038012,-500.0,0.00011063,2]
[395237275,1764561038023,-613.92608967,0.00011096,2]
[395237277,1764561038032,-2321.05391033,0.00011096,2]
[395237281,1764561038061,-454.81608967,0.00011096,2]
[395237283,1764561038071,-1463.3,0.00011096,2]
[395237285,1764561038081,-500.0,0.00011096,2]
[395237287,1764561038091,-81.88391033,0.00011096,2]
[395237290,1764561038106,-2467.50608967,0.00011096,2]
[395237292,1764561038116,-1972.32,0.00011096,2]
[395237294,1764561038125,-500.0,0.00011096,2]
[395237296,1764561038135,-864.83,0.00011096,2]
[395237297,1764561038144,-2222.64,0.00011096,2]
[395237300,1764561038153,-579.69,0.00011096,2]
[395237302,1764561038162,-2077.49,0.00011096,2]
[395237304,1764561038171,-2435.56,0.00011096,2]
[395237305,1764561038181,-2429.71,0.00011096,2]
[395237307,1764561038190,-3577.64,0.00011096,2]
[395237310,1764561038200,-1032.01,0.00011096,2]
[395237312,1764561038209,-1016.68,0.00011096,2]
[395237314,1764561038219,-721.51,0.00011096,2]
[395237316,1764561038230,-516.25,0.00011096,2]
[395237318,1764561038239,-3766.89,0.00011096,2]
[395237320,1764561038249,-1123.42,0.00011096,2]
[395237322,1764561038258,-656.56,0.00011096,2]
[395237324,1764561038267,-553.86710213,0.00011097,2]
[395237325,1764561038276,-500.0,0.00011097,2]
[395237327,1764561038286,-500.0,0.00011097,2]
[395237329,1764561038295,-500.0,0.00011097,2]
[395237331,1764561038305,-500.0,0.00011097,2]
[395237333,1764561038314,-380.19133718,0.00011097,2]
[395237336,1764561038326,-119.80866282,0.00011097,2]
[395237338,1764561038335,-539.92,0.00011097,2]
[395237340,1764561038343,-500.0,0.00011097,2]
[395237342,1764561038353,-500.0,0.00011097,2]
[395237344,1764561038365,-500.0,0.00011097,2]
[395237346,1764561038374,-500.0,0.00011097,2]
[395237348,1764561038383,-500.0,0.00011097,2]
[395237350,1764561038392,-231.19133718,0.00011097,2]
[395237920,1764561045954,-1483.29766791,0.00010821,2]
[395237921,1764561045964,-500.0,0.0001093,2]
[395237922,1764561045974,-500.0,0.0001093,2]
[395237923,1764561045983,-483.29766791,0.0001093,2]
[395237924,1764561045994,-680.09,0.00011063,2]
[395237925,1764561046003,-5533.48,0.00011096,2]
[395237926,1764561046012,-321.33866282,0.00011097,2]
[395237927,1764561046022,-500.0,0.00011097,2]
[395237928,1764561046032,-500.0,0.00011097,2]
[395237929,1764561046043,-500.0,0.00011097,2]
[395237930,1764561046052,-500.0,0.00011097,2]
[395237931,1764561046064,-500.0,0.00011097,2]
[395237932,1764561046073,-617.78,0.00011097,2]
[395237933,1764561046083,-500.0,0.00011097,2]
[395237934,1764561046092,-500.0,0.00011097,2]
[395237935,1764561046102,-500.0,0.00011097,2]
[395237936,1764561046111,-669.89,0.00011097,2]
[395237937,1764561046120,-500.0,0.00011097,2]
[395237938,1764561046130,-500.0,0.00011097,2]
[395237939,1764561046140,-500.0,0.00011097,2]
[395237940,1764561046149,-500.0,0.00011097,2]
[395237941,1764561046159,-500.0,0.00011097,2]
[395237942,1764561046168,-691.51,0.00011097,2]
[395237943,1764561046177,-500.0,0.00011098,2]
[395237944,1764561046187,-500.0,0.00011098,2]
[395237945,1764561046197,-645.74847353,0.00011098,2]
[395237946,1764561046206,-500.0,0.00011098,2]
[395237947,1764561046216,-500.0,0.00011098,2]
[395237948,1764561046226,-500.0,0.00011098,2]
[395237949,1764561046235,-500.0,0.00011098,2]
[395237950,1764561046245,-650.51,0.00011098,2]
[395237951,1764561046254,-1900.84,0.00011098,2]
[395237952,1764561046263,-500.0,0.00011098,2]
[395237953,1764561046272,-648.35,0.00011098,2]
[395237954,1764561046282,-1034.06,0.00011098,2]
[395237955,1764561046291,-500.0,0.00011098,2]
[395237956,1764561046301,-1323.91,0.00011098,2]
[395237957,1764561046310,-943.99,0.00011098,2]
[395237958,1764561046319,-500.0,0.00011098,2]
[395237959,1764561046328,-600.03,0.00011098,2]
[395237960,1764561046337,-500.0,0.00011098,2]
[395237961,1764561046347,-594.69,0.00011098,2]
[395237962,1764561046358,-500.0,0.00011098,2]
[395237963,1764561046367,-500.0,0.00011098,2]
[395237964,1764561046376,-449.18792453,0.00011098,2]
[395237965,1764561046399,-280.81207547,0.00011098,2]
[395237966,1764561046409,-484.9024875,0.00011098,2]
[395237967,1764561303723,-206.02512117,0.00015611,15]
[395238071,1764562232722,-332.28741701,9.013e-05,2]
[395238072,1764562232746,-59.99440616,9.013e-05,2]
[395238073,1764562232755,-392.28182317,9.104e-05,2]
[395238074,1764562232765,-235.0,0.00010395,2]
[395238075,1764562232775,-171.00068647,0.000105,2]
[395238076,1764562232785,-500.0,0.00010632,2]
[395238077,1764562232795,-162.94516777,0.00010632,2]
[395238078,1764562232813,-321.86847083,0.00010632,2]
[395238079,1764562232822,-353.71323156,0.00010845,2]
[395238080,1764562232832,-231.28369723,0.00010951,2]
[395238081,1764562232842,-151.0,0.00010951,2]
[395238082,1764562232852,-179.0,0.00010955,2]
[395238083,1764562232863,-300.0,0.00010955,2]
[395238084,1764562232873,-726.64505187,0.00010956,2]
[395238085,1764562232884,-1200.0,0.00010956,2]
[395238086,1764562232896,-500.0,0.00010957,2]
[395238087,1764562232907,-290.50937972,0.00010957,2]
[395238088,1764562232919,-500.0,0.00010957,2]
[395238089,1764562232929,-412.02983279,0.00010957,2]
[395238090,1764562232940,-500.0,0.00010958,2]
[395238091,1764562232951,-500.0,0.00010958,2]
[395238092,1764562232961,-500.0,0.00010958,2]
[395238093,1764562232971,-500.0,0.00010958,2]
[395238094,1764562232981,-536.93352004,0.00010958,2]
[395238095,1764562232992,-500.0,0.00010958,2]
[395238096,1764562233002,-75.06576708,0.00010958,2]
[395238108,1764562238631,-442.35423292,0.00010958,2]
[395238109,1764562238642,-419.07536708,0.00010958,2]
[395238110,1764562238655,-80.92463292,0.00010958,2]
[395238111,1764562238668,-634.09,0.00010958,2]
[395238112,1764562238679,-1481.28411766,0.00010958,2]
[395238113,1764562238707,-191.05588234,0.00010958,2]
[395238114,1764562238717,-500.0,0.00010958,2]
[395238115,1764562238727,-1816.93,0.00010958,2]
[395238116,1764562238737,-500.0,0.00010958,2]
[395238117,1764562238747,-500.0,0.00010958,2]
[395238118,1764562238757,-509.37435861,0.00010958,2]
[395238119,1764562238768,-500.0,0.00010958,2]
[395238120,1764562238779,-518.92941813,0.00010958,2]
[395238121,1764562238789,-500.0,0.00010958,2]
[395238123,1764562238800,-966.67,0.00010958,2]
[395238124,1764562238812,-699.03,0.00010958,2]
[395238125,1764562238822,-500.0,0.00010958,2]
[395238126,1764562238832,-500.0,0.00010958,2]
[395238127,1764562238842,-500.0,0.00010958,2]
[395238128,1764562238853,-500.0,0.00010958,2]
[395238129,1764562238863,-500.0,0.00010958,2]
[395238130,1764562238874,-500.0,0.00010958,2]
[395238131,1764562238884,-500.0,0.00010958,2]
[395238132,1764562238895,-500.0,0.00010958,2]
[395238133,1764562238905,-1688.0,0.00010958,2]
[395238134,1764562238917,-500.0,0.00010958,2]
[395238135,1764562238928,-199.07197743,0.00010958,2]
[395238136,1764562238939,-151.0,0.00010958,2]
[395238137,1764562238950,-495.0,0.00010958,2]
[395238138,1764562238960,-500.0,0.00010958,2]
[395238139,1764562238971,-645.98,0.00010958,2]
[395238140,1764562238981,-500.0,0.00010958,2]
[395238141,1764562238992,-1821.64,0.00010958,2]
[395238142,1764562239002,-623.4,0.00010958,2]
[395238143,1764562239012,-151.0,0.00010958,2]
[395238144,1764562239023,-500.0,0.00010958,2]
[395238145,1764562239034,-500.0,0.00010958,2]
[395238146,1764562239045,-500.0,0.00010958,2]
[395238147,1764562239056,-500.0,0.00010958,2]
[395238148,1764562239070,-500.0,0.00010958,2]
[395238149,1764562239079,-719.81,0.00010958,2]
[395238150,1764562239090,-621.34,0.00010958,2]
[395238151,1764562239101,-990.97,0.00010958,2]
[395238152,1764562239112,-500.0,0.00010958,2]
[395238153,1764562239122,-500.0,0.00010958,2]
[395238154,1764562239132,-2078.55,0.00010958,2]
[395238155,1764562239142,-500.0,0.00010958,2]
[395238156,1764562239155,-1268.75,0.00010958,2]
[395238157,1764562239167,-999.6,0.00010958,2]
[395238158,1764562239178,-500.0,0.00010958,2]
[395238159,1764562239189,-500.0,0.00010958,2]
[395238160,1764562239199,-904.66,0.00010958,2]
[395238161,1764562239210,-529.51,0.00010958,2]
[395238162,1764562239222,-500.0,0.00010958,2]
[395238163,1764562239232,-500.0,0.00010958,2]
[395238164,1764562239243,-500.0,0.00010958,2]
[395238165,1764562239253,-964.33,0.00010958,2]
[395238166,1764562239264,-569.91,0.00010958,2]
[395238167,1764562239274,-500.0,0.00010958,2]
[395238168,1764562239285,-575.03,0.00010958,2]
[395238169,1764562239295,-947.52,0.00010958,2]
[395238170,1764562239306,-671.89,0.00010958,2]
[395238171,1764562239316,-500.0,0.00010958,2]
[395238172,1764562239327,-576.39,0.00010958,2]
[395238173,1764562239338,-500.0,0.00010958,2]
[395238174,1764562239348,-500.0,0.00010958,2]
[395238175,1764562239358,-500.0,0.00010958,2]
[395238176,1764562239369,-500.0,0.00010958,2]
[395238177,1764562239379,-699.58,0.00010958,2]
[395238178,1764562239390,-500.0,0.00010958,2]
[395238179,1764562239401,-500.0,0.00010958,2]
[395238180,1764562239414,-500.0,0.00010958,2]
[395238181,1764562239424,-1719.0,0.00010958,2]
[395238182,1764562239435,-3073.15,0.00010958,2]
[395238183,1764562239445,-331.92967951,0.00010958,2]
[395238184,1764562239460,-168.07032049,0.00010958,2]
[395238185,1764562239469,-641.98,0.00010958,2]
[395238186,1764562239480,-500.0,0.00010958,2]
[395238187,1764562239490,-592.04,0.00010958,2]
[395238188,1764562239500,-500.0,0.00010958,2]
[395238189,1764562239510,-868.38,0.00010958,2]
[395238190,1764562239520,-151.0,0.00010958,2]
[395238191,1764562239530,-390.19759975,0.00010958,2]
[395238192,1764562239542,-887.43240025,0.00010958,2]
[395238193,1764562239551,-190.7337116,0.00010958,2]
[395238194,1764562239561,-500.0,0.00010958,2]
[395238195,1764562239571,-500.0,0.00010958,2]
[395238196,1764562239580,-500.0,0.00010958,2]
[395238197,1764562239590,-1265.94,0.00010958,2]
[395238198,1764562239600,-500.0,0.00010958,2]
[395238199,1764562239609,-717.64,0.00010958,2]
[395238200,1764562239619,-500.0,0.00010958,2]
[395238201,1764562239628,-500.0,0.00010958,2]
[395238202,1764562239637,-500.0,0.00010958,2]
[395238203,1764562239647,-500.0,0.00010958,2]
[395238204,1764562239657,-558.05,0.00010958,2]
[395238205,1764562239667,-642.55,0.00010958,2]
[395238206,1764562239677,-500.0,0.00010958,2]
[395238207,1764562239687,-734.83,0.00010958,2]
[395238208,1764562239696,-1558.77,0.00010958,2]
[395238209,1764562239706,-595.52802037,0.00010958,2]
[395238210,1764562239716,-501.05435692,0.00010958,2]
[395238211,1764562239725,-1074.56,0.00010958,2]
[395238212,1764562239735,-500.0,0.00010958,2]
[395238213,1764562239744,-500.0,0.00010958,2]
[395238214,1764562239753,-15599.29,0.00010958,2]
[395238215,1764562239762,-500.0,0.00010958,2]
[395238216,1764562239771,-2834.72166554,0.00010958,2]
[395238217,1764562239783,-60.90833446,0.00010958,2]
[395238218,1764562239792,-1111.79,0.00010958,2]
[395238219,1764562239801,-500.0,0.00010958,2]
[395238220,1764562239811,-500.0,0.00010958,2]
[395238221,1764562239820,-662.7,0.00010958,2]
[395238222,1764562239830,-500.0,0.00010958,2]
[395238223,1764562239839,-500.0,0.00010958,2]
[395238224,1764562239848,-1687.58,0.00010958,2]
[395238225,1764562239857,-500.0,0.00010958,2]
[395238226,1764562239867,-2819.61,0.00010958,2]
[395238227,1764562239876,-500.0,0.00010958,2]
[395238228,1764562239885,-500.0,0.00010958,2]
[395238229,1764562239894,-596.13,0.00010958,2]
[395238231,1764562239904,-500.0,0.00010958,2]
[395238233,1764562239913,-716.99,0.00010958,2]
[395238235,1764562239923,-5609.74591227,0.00010958,2]
[395238743,1764562246296,-948.68,0.00010958,2]
[395238792,1764562341326,-3725.0,0.00010847,2]
[395238793,1764562341354,-300.0,0.00010847,2]
[395238794,1764562341381,-167.58067274,0.00010848,2]
[395238795,1764562341450,-1614.84865452,0.00010848,2]
[395238796,1764562342083,-10000.01,0.00010848,2]
[395238797,1764562342252,-4115.4441802,0.00010848,2]
[395238798,1764562342278,-500.0,0.00010958,2]
[395238799,1764562342305,-269.1216396,0.00010958,2]
[395238800,1764562342371,-230.8783604,0.00010958,2]
[395238801,1764562342425,-500.0,0.00010958,2]
[395238802,1764562342451,-605.16,0.00010958,2]
[395238803,1764562342476,-500.0,0.00010958,2]
[395238804,1764562342502,-571.79,0.00010958,2]
[395238805,1764562342528,-621.49,0.00010958,2]
[395238806,1764562342554,-500.0,0.00010958,2]
[395238807,1764562342579,-500.0,0.00010958,2]
[395238808,1764562342605,-674.48,0.00010958,2]
[395238809,1764562342631,-293.03,0.00010958,2]
[395238810,1764562342803,-468.11,0.00010958,2]
[395238811,1764562342830,-500.0,0.00010958,2]
[395238812,1764562342858,-500.0,0.00010958,2]
[395238813,1764562342886,-505.07,0.00010958,2]
[395238814,1764562342915,-500.0,0.00010958,2]
[395238815,1764562342941,-500.0,0.00010958,2]
[395238816,1764562342967,-500.0,0.00010958,2]
[395238817,1764562342994,-500.0,0.00010958,2]
[395238818,1764562343020,-500.0,0.00010958,2]
[395238819,1764562343047,-507.63,0.00010958,2]
[395238820,1764562343127,-38.39,0.00010958,2]
[395238821,1764562343156,-500.0,0.00010958,2]
[395238822,1764562343185,-500.0,0.00010958,2]
[395238823,1764562343212,-668.7,0.00010958,2]
[395238824,1764562343239,-500.0,0.00010958,2]
[395238825,1764562343265,-500.0,0.00010958,2]
[395238826,1764562343294,-500.0,0.00010958,2]
[395238827,1764562343322,-500.0,0.00010958,2]
[395238828,1764562343350,-857.41,0.00010958,2]
[395238829,1764562343379,-371.01,0.00010958,2]
[395238830,1764562343516,-128.99,0.00010958,2]
[395238831,1764562343543,-501.91466859,0.00010958,2]
[395238832,1764562343570,-1537.68,0.00010958,2]
[395238833,1764562343596,-500.0,0.00010958,2]
[395238834,1764562343623,-500.0,0.00010958,2]
[395238835,1764562343650,-222.49549508,0.00010958,2]
[395238836,1764562343677,-619.02295313,0.00010958,2]
[395238837,1764562343704,-911.0837664,0.00010958,2]
[395238838,1764562343807,-157.6362336,0.00010958,2]
[395238839,1764562343834,-500.0,0.00010958,2]
[395238840,1764562343861,-1801.99,0.00010958,2]
[395238841,1764562343889,-228.0878752,0.00010958,2]
[395238842,1764562343917,-1703.27,0.00010958,2]
[395238843,1764562343944,-500.0,0.00010958,2]
[395238844,1764562344524,-519.21393158,0.00010958,2]
[395238845,1764562344552,-500.0,0.00010958,2]
[395238846,1764562344579,-500.0,0.00010958,2]
[395238847,1764562344606,-500.0,0.00010958,2]
[395238848,1764562344633,-500.0,0.00010958,2]
[395238849,1764562344660,-705.33,0.00010958,2]
[395238850,1764562344687,-500.0,0.00010958,2]
[395238851,1764562344717,-500.0,0.00010958,2]
[395238852,1764562344744,-500.97913839,0.00010958,2]
[395238853,1764562344771,-48.96386006,0.00010958,2]
[395238854,1764562345518,-31.39670598,0.00010958,2]
[395238855,1764562345535,-419.63943396,0.00010958,2]
[395238856,1764562345544,-80.36056604,0.00010958,2]
[395238857,1764562345558,-419.63943396,0.00010958,2]
[395238858,1764562345567,-81.33970443,0.00010958,2]
[395238859,1764562345580,-87.86060923,0.00010958,2]
[395238860,1764562345590,-412.13939077,0.00010958,2]
[395238861,1764562351159,-3439.72098641,0.0001,2]
[395238862,1764562351188,-265.62060923,0.00010958,2]
[395238863,1764562351421,-999.35680872,0.00010958,2]
[395238864,1764562351480,-590.61319128,0.00010958,2]
[395238865,1764562351538,-500.0,0.00010958,2]
[395238866,1764562351564,-540.74208362,0.00010958,2]
[395238867,1764562351592,-950.91,0.00010958,2]
[395238868,1764562351619,-500.0,0.00010958,2]
[395238869,1764562351645,-500.0,0.00010958,2]
[395238870,1764562351674,-500.0,0.00010958,2]
[395238871,1764562351701,-500.0,0.00010958,2]
[395238872,1764562351729,-500.0,0.00010958,2]
[395238873,1764562351757,-314.54583276,0.00010958,2]
[395238874,1764562351896,-387.61416724,0.00010958,2]
[395238875,1764562351926,-1442.82,0.00010958,2]
[395238876,1764562351956,-2866.77,0.00010958,2]
[395238877,1764562351982,-104.61358451,0.00010958,2]
[395238878,1764562352142,-283.00058273,0.00010958,2]
[395238879,1764562352167,-113.37391377,0.00010958,2]
[395238880,1764562352178,-387.61416724,0.00010958,2]
[395238882,1764562383304,-1569.18317385,9.801e-05,2]
[395238883,1764562383333,-3421.92266589,9.9e-05,2]
[395238884,1764562383371,-17.79832052,9.9e-05,2]
[395238885,1764562383468,-300.0,0.00010957,2]
[395238886,1764562383498,-112.38583276,0.00010958,2]
[395238887,1764562383527,-500.93,0.00010958,2]
[395238888,1764562383556,-679.49,0.00010958,2]
[395238889,1764562383585,-500.0,0.00010958,2]
[395238890,1764562383614,-500.0,0.00010958,2]
[395238891,1764562383643,-500.0,0.00010958,2]
[395238892,1764562383672,-851.78833448,0.00010958,2]
[395238893,1764562383792,-2110.82166552,0.00010958,2]
[395238894,1764562383823,-500.0,0.00010958,2]
[395238895,1764562383852,-500.0,0.00010958,2]
[395238896,1764562383880,-629.2,0.00010958,2]
[395238897,1764562383909,-500.0,0.00010958,2]
[395238898,1764562384020,-1990.92,0.00010958,2]
[395238899,1764562384048,-689.62,0.00010958,2]
[395238900,1764562384080,-500.0,0.00010958,2]
[395238901,1764562384262,-3833.03,0.00010958,2]
[395238902,1764562384407,-2333.95,0.00010958,2]
[395238903,1764562384416,-520.95,0.00010958,2]
[395238904,1764562384426,-500.0,0.00010958,2]
[395238905,1764562384435,-100.16666896,0.00010958,2]
[395238906,1764562384464,-2233.91333104,0.00010958,2]
[395238907,1764562384474,-500.0,0.00010958,2]
[395238908,1764562384484,-1187.09,0.00010958,2]
[395238909,1764562384492,-2245.97666896,0.00010958,2]
[395238910,1764562397023,-2947.73333104,0.00010958,2]
[395238911,1764562397053,-675.97333792,0.00010958,2]
[395238912,1764562397097,-2752.59666208,0.00010958,2]
[395238913,1764562397574,-500.0,0.00010958,2]
[395238914,1764562397602,-2251.46,0.00010958,2]
[395238915,1764562397630,-500.0,0.00010958,2]
[395238916,1764562397657,-500.0,0.00010958,2]
[395238917,1764562397685,-151.0,0.00010958,2]
[395238918,1764562397907,-2195.09,0.00010958,2]
[395238919,1764562406591,-4718.65746871,0.00010848,2]
[395238920,1764562406623,-62.69506258,0.00010957,2]
[395238921,1764562406663,-437.30493742,0.00010957,2]
[395238922,1764562406840,-500.0,0.00010957,2]
[395238923,1764562406876,-336.64674131,0.00010957,2]
[395238924,1764562406910,-133.38,0.00010958,2]
[395238925,1764562406941,-500.0,0.00010958,2]
[395238926,1764562406972,-151.0,0.00010958,2]
[395238927,1764562407001,-169.35679058,0.00010958,2]
[395238928,1764562407031,-500.0,0.00010958,2]
[395238929,1764562407059,-500.0,0.00010958,2]
[395238930,1764562407094,-500.0,0.00010958,2]
[395238931,1764562407127,-500.0,0.00010958,2]